bitfinex-derivatives/quotes_ETHF0:USTF0_20250107
["timestamp","ask_amount","ask_price","bid_price","bid_amount"]
[1736255363833,1.27506101,3634.9,3634.8,0.27512]
[1736255364519,1.27506101,3634.9,3634.7,40.8]
[1736255364520,0.27513,3634.8,3634.7,41.07513]
[1736255364723,0.79013,3634.8,3634.7,41.07513]
[1736255364926,0.515,3634.8,3634.7,41.07513]
[1736255365333,0.79013,3634.8,3634.7,41.07513]
[1736255365520,0.515,3634.8,3634.7,41.07513]
[1736255367529,0.79013,3634.8,3634.7,41.07513]
[1736255367929,0.79013,3634.8,3634.7,40.8]
[1736255368136,0.79013,3634.8,3634.7,41.07513]
[1736255368330,0.79013,3634.8,3634.7,40.8]
[1736255368628,2.95160212,3634.8,3634.7,41.07513]
[1736255368826,2.95160212,3634.8,3634.7,40.8]
[1736255369022,3.75147212,3634.8,3633.8,11.83383107]
[1736255369324,1.27511101,3634.1,3634.0,6.7447033]
[1736255369530,0.99993101,3634.1,3634.0,47.5447033]
[1736255369736,1.27511101,3634.1,3634.0,47.5447033]
[1736255369935,1.98183101,3634.1,3634.0,47.5447033]
[1736255370430,0.9819,3634.1,3634.0,47.5447033]
[1736255371229,0.9819,3634.1,3634.0,41.07518]
[1736255385548,2.1611899,3634.4,3634.0,40.8]
[1736255385741,2.1611899,3634.4,3634.3,0.27517]
[1736255386241,2.1611899,3634.4,3634.3,41.57147]
[1736255386446,2.1611899,3634.5,3634.3,41.2963]
[1736255386637,2.1611899,3634.5,3634.4,0.27516]
[1736255387348,2.1611899,3634.5,3634.4,41.07516]
[1736255387948,5.31940971,3634.8,3634.7,0.27513]
[1736255387949,0.99993101,3634.8,3634.7,0.27513]
[1736255388641,0.99993101,3634.8,3634.7,41.07513]
[1736255392648,3.16112091,3634.8,3634.7,41.07513]
[1736255392845,2.1611899,3634.8,3634.7,41.07513]
[1736255393245,2.1611899,3634.8,3634.7,45.28286101]
[1736255393752,2.1611899,3634.9,3634.7,45.00773101]
[1736255394052,2.1611899,3634.9,3634.8,0.27513]
[1736255394245,2.1611899,3634.9,3634.8,0.76253]
[1736255394953,2.1611899,3635.1,3634.8,0.4874]
[1736255395147,2.1611899,3635.1,3635.0,0.27511]
[1736255396555,2.6800899,3635.4,3635.3,0.27509]
[1736255397247,2.6800899,3635.4,3635.3,41.07509]
[1736255397849,0.5189,3635.4,3635.3,41.07509]
[1736255402661,0.79398,3635.4,3635.3,0.27509]
[1736255404153,4.44895393,3635.4,3635.3,0.27509]
[1736255405864,0.27509,3635.3,3635.2,41.07509]
[1736255406066,0.78029,3635.3,3635.2,41.07509]
[1736255406259,0.5052,3635.3,3635.2,41.07509]
[1736255407963,2.66503747,3635.3,3635.2,41.07509]
[1736255409465,2.94012747,3635.3,3635.2,41.07509]
[1736255410067,2.66503747,3635.3,3635.2,41.07509]
[1736255411465,0.5052,3635.3,3635.2,41.07509]
[1736255411866,0.78029,3635.3,3635.2,41.07509]
[1736255412566,0.5052,3635.3,3635.2,41.07509]
[1736255413365,0.78029,3635.3,3635.2,41.07509]
[1736255413570,0.5052,3635.3,3635.2,41.07509]
[1736255414667,0.78029,3635.3,3635.2,41.07509]
[1736255414858,0.5052,3635.3,3635.2,41.07509]
[1736255415064,0.78029,3635.3,3635.2,41.07509]
[1736255415971,1.78022101,3635.3,3635.2,41.07509]
[1736255416567,1.78022101,3635.3,3635.2,40.8]
[1736255416771,0.27511,3635.0,3634.9,3.2078]
[1736255416971,1.27504101,3635.0,3634.9,3.2078]
[1736255417169,0.27512,3634.9,3634.8,0.27513]
[1736255417367,1.28142,3634.9,3634.8,0.27513]
[1736255417672,1.28142,3634.9,3634.8,41.07513]
[1736255418370,1.0063,3634.9,3634.8,41.07513]
[1736255418675,1.28142,3634.9,3634.8,41.07513]
[1736255420372,1.0063,3634.9,3634.8,41.07513]
[1736255421179,2.15983747,3635.0,3634.9,0.27512]
[1736255422576,2.43494747,3635.1,3635.0,0.27511]
[1736255424180,0.27511,3635.1,3635.0,0.27511]
[1736255425079,3.51731818,3635.1,3635.0,0.27511]
[1736255426278,3.93009538,3635.1,3635.0,0.27511]
[1736255429077,3.93009538,3635.1,3634.8,41.79993101]
[1736255429078,0.6878872,3635.1,3634.8,40.8]
[1736255429286,1.27505101,3634.9,3634.8,40.8]
[1736255430481,1.68782821,3634.9,3634.8,40.8]
[1736255430981,2.13662821,3634.9,3634.8,40.8]
[1736255431370,2.13662821,3634.9,3634.8,41.07513]
[1736255431772,6.46230785,3634.9,3634.8,41.07513]
[1736255433382,6.46230785,3634.9,3634.8,40.8]
[1736255434080,2.13662821,3634.9,3634.8,40.8]
[1736255435179,1.72385101,3634.9,3634.8,40.8]
[1736255435980,1.72385101,3634.9,3634.8,41.07513]
[1736255436183,1.72385101,3634.9,3634.8,40.8]
[1736255436383,6.46263548,3634.9,3634.8,40.8]
[1736255436584,6.46263548,3634.9,3634.8,41.07513]
[1736255436786,6.46263548,3634.9,3634.8,40.8]
[1736255440285,0.27517,3634.3,3634.2,4.30214006]
[1736255440479,4.55697,3634.3,3634.2,4.30214006]
[1736255440977,10.97580101,3634.3,3634.2,4.30214006]
[1736255441297,7.19226354,3634.3,3634.2,4.30214006]
[1736255441681,7.19226354,3634.3,3633.6,7.00858346]
[1736255441682,0.27522,3633.6,3633.0,8.19809006]
[1736255442790,0.27523,3633.5,3633.4,0.27523]
[1736255442988,0.27524,3633.4,3633.3,0.27524]
[1736255443488,0.27524,3633.4,3633.2,0.27524]
[1736255444383,0.27524,3633.4,3633.0,3.2078]
[1736255444584,0.27524,3633.4,3633.3,0.27524]
[1736255447991,0.27522,3633.6,3633.4,0.27523]
[1736255448697,0.27522,3633.6,3633.5,40.8]
[1736255450096,0.27522,3633.6,3633.5,41.07523]
[1736255450295,0.27522,3633.6,3633.5,40.8]
[1736255450998,0.27522,3633.6,3633.5,41.07523]
[1736255451688,2.15942808,3633.7,3633.5,40.8]
[1736255451889,2.15942808,3633.7,3633.6,3.89972]
[1736255452089,2.15942808,3633.7,3633.6,4.35682]
[1736255455895,0.27519,3634.0,3633.6,4.0816]
[1736255456096,0.27519,3634.0,3633.9,0.2752]
[1736255456297,0.27519,3634.0,3633.8,0.2752]
[1736255456596,0.2752,3633.9,3633.7,0.27521]
[1736255456901,0.2752,3633.9,3633.8,0.2752]
[1736255457786,0.27519,3634.0,3633.9,0.2752]
[1736255461392,0.27519,3634.0,3633.8,0.2752]
[1736255461393,0.2752,3633.9,3633.8,0.2752]
[1736255461600,2.17871341,3633.9,3633.8,0.2752]
[1736255461915,2.17871341,3633.9,3633.5,40.8]
[1736255461916,0.27523,3633.5,3633.4,0.27522]
[1736255462199,0.27523,3633.5,3633.2,3.2078]
[1736255462200,1.00001341,3633.5,3633.2,3.2078]
[1736255462405,0.27524,3633.4,3633.3,41.07524]
[1736255463099,0.72584,3633.4,3633.3,41.07524]
[1736255465299,0.72584,3633.4,3633.3,40.8]
[1736255467502,0.72584,3633.4,3633.3,41.07524]
[1736255473907,1.18064,3633.4,3633.3,41.07524]
[1736255478708,0.9054,3633.4,3633.3,41.07524]
[1736255478912,3.2078,3634.5,3633.3,45.8]
[1736255479101,3.2078,3634.5,3634.4,0.27515]
[1736255479303,0.8718,3634.7,3634.0,3.2078]
[1736255479514,7.83035471,3634.6,3634.5,0.27514]
[1736255479909,7.55521471,3634.6,3634.5,0.27514]
[1736255480714,2.15811556,3634.6,3634.5,0.27515]
[1736255481807,3.30505556,3634.7,3634.6,0.27514]
[1736255483008,3.02991556,3634.7,3634.5,0.27515]
[1736255483212,3.30505556,3634.7,3634.5,0.27515]
[1736255483613,3.02991556,3634.7,3634.4,40.8]
[1736255483815,0.27515,3634.5,3634.4,0.27516]
[1736255484008,0.27515,3634.6,3634.4,0.27516]
[1736255484210,0.27515,3634.6,3634.5,0.27515]
[1736255484415,2.15811556,3634.6,3634.5,0.27515]
[1736255484916,2.15811556,3634.6,3634.2,40.8]
[1736255485119,2.15811556,3634.6,3634.5,0.27515]
[1736255487016,2.15811556,3634.8,3634.7,0.27513]
[1736255488310,2.15811556,3635.0,3634.4,3.2078]
[1736255488614,2.15811556,3635.0,3634.9,3.48292]
[1736255489419,2.15811556,3635.0,3634.9,44.28292]
[1736255489619,3.23717335,3635.1,3634.9,44.28292]
[1736255489620,1.3458,3635.5,3634.9,44.0078]
[1736255489922,2.21635145,3635.3,3635.0,0.27511]
[1736255490115,0.27511,3635.1,3634.9,44.28292]
[1736255491121,0.2751,3635.2,3635.0,0.27511]
[1736255491420,0.2751,3635.1,3634.9,44.28292]
[1736255491614,0.2751,3635.1,3635.0,0.27511]
[1736255492019,0.2751,3635.2,3635.0,0.27511]
[1736255493119,2.49144145,3635.3,3635.1,0.2751]
[1736255493920,2.21635145,3635.3,3635.1,0.2751]
[1736255494120,2.49144145,3635.3,3635.1,0.2751]
[1736255494315,2.21635145,3635.3,3634.9,44.0078]
[1736255494712,0.27511,3635.0,3634.9,44.28292]
[1736255494916,0.27511,3635.1,3634.9,44.28291]
[1736255495218,0.27511,3635.0,3634.9,44.0078]
[1736255495418,0.71811,3635.0,3634.9,44.28292]
[1736255495723,2.65935145,3635.0,3634.5,3.2078]
[1736255495919,2.21635145,3634.7,3634.5,3.2078]
[1736255496122,0.27514,3634.6,3634.5,3.48295]
[1736255496423,0.27514,3634.6,3634.5,44.28295]
[1736255496919,2.21635145,3634.7,3634.5,44.0078]
[1736255497421,2.21635145,3634.7,3634.6,0.27514]
[1736255497422,2.49149145,3634.7,3634.6,0.27514]
[1736255498921,2.21635145,3634.7,3634.6,0.27514]
[1736255499123,2.49148145,3634.7,3634.6,0.27514]
[1736255500527,2.21635145,3634.7,3634.6,0.27514]
[1736255500824,3.48293,3634.8,3634.7,0.27513]
[1736255503917,0.27513,3634.8,3634.7,0.27513]
[1736255511236,6.23941556,3634.9,3634.5,40.8]
[1736255511436,6.23941556,3634.9,3634.8,0.27513]
[1736255511437,6.51454556,3634.9,3634.8,0.27513]
[1736255512035,4.35643,3634.9,3634.8,0.27513]
[1736255513836,0.27513,3634.8,3634.7,0.27513]
[1736255514337,0.27516,3634.6,3634.5,0.27514]
[1736255514739,0.27516,3634.6,3634.5,41.07514]
[1736255515039,0.27516,3634.6,3634.1,0.27517]
[1736255515040,0.27517,3634.3,3634.1,0.27517]
[1736255515244,3.6681,3634.2,3633.3,9.66947286]
[1736255515440,2.49157145,3633.8,3633.7,0.27521]
[1736255515748,2.21635145,3633.8,3633.5,40.8]
[1736255515945,0.27522,3633.6,3633.5,40.8]
[1736255517242,2.43333556,3633.6,3633.5,40.8]
[1736255518741,5.64113556,3633.6,3633.5,40.8]
[1736255521751,6.05833556,3633.6,3633.5,40.8]
[1736255522342,3.90022,3633.6,3633.5,40.8]
[1736255523649,3.625,3633.6,3633.5,40.8]
[1736255523854,3.23717335,3633.7,3633.6,0.27522]
[1736255524150,3.23717335,3633.7,3633.6,0.71502]
[1736255524453,3.23717335,3633.7,3633.6,41.51502]
[1736255524656,3.51238335,3633.7,3633.6,41.51502]
[1736255525652,0.27521,3633.7,3633.6,40.8]
[1736255526850,2.43353715,3633.7,3633.6,40.8]
[1736255528654,3.53433715,3633.7,3633.6,40.8]
[1736255529652,3.53433715,3633.7,3633.6,41.07522]
[1736255530951,1.37601,3633.7,3633.6,41.07522]
[1736255531550,1.1008,3633.7,3633.6,41.07522]
[1736255532048,1.1008,3633.7,3633.6,41.50182]
[1736255533458,2.15832715,3634.5,3633.6,41.2266]
[1736255533658,2.15832715,3634.5,3634.4,0.27516]
[1736255534156,2.15832715,3634.5,3634.4,41.07516]
[1736255534659,2.43347715,3634.5,3634.4,41.07516]
[1736255534853,2.48937715,3634.5,3634.4,40.8]
[1736255535059,2.48937715,3634.5,3634.4,41.07516]
[1736255535255,0.33105,3634.5,3634.4,41.07516]
[1736255536459,0.0559,3634.5,3634.4,41.07516]
[1736255552872,0.33105,3634.5,3634.4,41.07516]
[1736255553362,0.0559,3634.5,3634.4,41.07516]
[1736255556268,0.0559,3634.5,3634.4,40.8]
[1736255556569,0.33105,3634.5,3634.4,41.07516]
[1736255556963,0.33105,3634.5,3634.4,40.8]
[1736255557163,0.33105,3634.5,3634.4,41.07516]
[1736255558170,0.0559,3634.5,3634.4,41.07516]
[1736255558364,2.21422715,3634.5,3634.4,41.07516]
[1736255559771,0.0559,3634.5,3634.4,41.07516]
[1736255561581,0.0559,3634.5,3634.4,44.28296]
[1736255563973,0.0559,3634.5,3634.4,41.07516]
[1736255564274,0.0559,3634.5,3634.4,44.28296]
[1736255565874,2.15832715,3634.9,3634.8,0.27513]
[1736255566175,2.58852715,3635.1,3635.0,0.27511]
[1736255566569,2.58852715,3635.1,3635.0,41.07511]
[1736255567269,0.4302,3635.1,3635.0,41.07511]
[1736255568776,2.58852715,3635.1,3635.0,41.07511]
[1736255572069,2.15832715,3635.1,3635.0,41.07511]
[1736255573379,2.15832715,3635.1,3635.0,44.28291]
[1736255574781,2.15832715,3635.3,3635.2,0.2751]
[1736255576984,4.11287335,3635.4,3635.1,0.4499]
[1736255577188,4.11287335,3635.4,3635.3,0.27509]
[1736255577982,4.52560389,3635.4,3635.3,0.27509]
[1736255581189,4.11287335,3635.4,3635.3,0.27509]
[1736255582496,3.03626892,3635.4,3635.3,0.27509]
[1736255586094,0.8757,3635.4,3635.3,0.27509]
[1736255589389,0.8757,3635.4,3635.3,1.27421256]
[1736255589695,2.16056892,3635.5,3635.3,0.99912256]
[1736255589908,0.55676892,3635.5,3635.4,0.71948]
[1736255590294,0.55676892,3635.5,3635.4,41.51948]
[1736255590601,3.69187335,3635.8,3635.7,0.27506]
[1736255591398,3.23717335,3635.8,3635.7,41.07506]
[1736255591596,4.1766752,3636.0,3635.7,47.3158]
[1736255591904,4.1766752,3636.0,3635.9,4.48196256]
[1736255591905,3.23816688,3636.0,3635.9,4.48196256]
[1736255592192,3.23816688,3636.0,3635.9,9.48196256]
[1736255592599,3.23816688,3636.0,3635.9,50.28196256]
[1736255593189,3.23816688,3636.0,3635.9,45.28196256]
[1736255593499,3.23816688,3636.0,3635.9,46.49510033]
[1736255593901,0.4566,3636.5,3635.9,56.4731789]
[1736255594097,0.4566,3636.5,3636.4,0.27501]
[1736255594896,0.4566,3636.5,3636.4,41.07501]
[1736255596500,3.97257033,3637.6,3636.8,0.68745]
[1736255596501,3.2078,3637.6,3636.8,0.68745]
[1736255596691,1.3442,3637.5,3637.4,0.27493]
[1736255597696,1.61913,3637.5,3637.3,0.27493]
[1736255597898,1.3442,3637.5,3637.4,0.27493]
[1736255598097,1.61912,3637.5,3637.4,40.8]
[1736255598300,1.3442,3637.5,3637.4,41.07493]
[1736255598497,1.61912,3637.5,3637.4,40.8]
[1736255598699,1.3442,3637.5,3637.4,40.8]
[1736255599605,1.3442,3637.5,3637.4,41.07493]
[1736255600105,1.3442,3637.5,3637.4,40.8]
[1736255600500,1.3442,3637.5,3637.4,41.07493]
[1736255608209,1.3442,3637.5,3637.4,0.27493]
[1736255611006,1.61912,3637.5,3637.4,0.27493]
[1736255611208,1.3442,3637.5,3637.4,0.27493]
[1736255611507,1.3442,3637.5,3637.2,40.8]
[1736255611706,5.42006033,3637.3,3636.4,0.68752]
[1736255611914,0.27496,3637.0,3636.8,0.27497]
[1736255612112,0.8865,3636.9,3636.8,0.27497]
[1736255612805,0.8865,3636.9,3636.8,41.07497]
[1736255613207,0.4384,3636.9,3636.8,41.07497]
[1736255614112,0.70724,3637.3,3636.8,40.8]
[1736255614301,0.4534,3637.2,3636.8,41.48744]
[1736255614502,0.8758,3637.2,3637.1,0.27495]
[1736255619423,0.8758,3637.2,3637.1,1.2730184]
[1736255620717,0.4224,3637.2,3637.1,1.2730184]
[1736255625822,0.4323,3637.3,3637.2,0.27495]
[1736255626027,0.4499,3637.6,3637.5,0.27492]
[1736255626335,0.4499,3637.6,3637.5,41.07492]
[1736255629730,0.72482,3637.6,3637.5,41.07492]
[1736255629938,0.72482,3637.6,3637.5,40.8]
[1736255630237,0.27493,3637.5,3637.4,0.27493]
[1736255630425,1.2729984,3637.5,3637.4,0.27493]
[1736255630627,1.2729984,3637.5,3637.4,41.07493]
[1736255630828,1.2729984,3637.5,3637.4,40.8]
[1736255631028,0.9980684,3637.5,3637.4,41.07493]
[1736255631234,0.27492,3637.5,3637.4,41.07493]
[1736255631536,1.2729884,3637.5,3637.4,41.07493]
[1736255633827,1.68552248,3637.5,3637.4,41.07493]
[1736255634535,0.41253408,3637.5,3637.4,42.0729984]
[1736255637836,4.71647078,3637.5,3637.4,42.0729984]
[1736255639136,10.23247133,3637.5,3637.4,42.0729984]
[1736255639734,10.23247133,3637.5,3637.4,41.07493]
[1736255640238,5.807823,3637.5,3637.4,41.07493]
[1736255641633,10.23247133,3637.5,3637.4,41.07493]
[1736255642842,4.83718241,3637.5,3637.4,41.07493]
[1736255644143,0.41253408,3637.5,3637.4,41.07493]
[1736255644632,0.68745408,3637.5,3637.4,41.07493]
[1736255644834,0.41253408,3637.5,3637.4,41.07493]
[1736255645536,4.83718241,3637.5,3637.4,41.07493]
[1736255645740,4.83718241,3637.5,3637.4,42.0729984]
[1736255646639,10.24772041,3637.5,3637.4,42.0729984]
[1736255655848,4.83718241,3637.5,3637.4,42.0729984]
[1736255657152,0.41253408,3637.5,3637.4,42.0729984]
[1736255658853,4.83718241,3637.5,3637.4,42.0729984]
[1736255659152,0.4547,3637.7,3637.6,0.27492]
[1736255660753,5.29358096,3637.7,3637.6,0.27492]
[1736255661055,5.56849096,3637.7,3637.6,0.27492]
[1736255662145,5.29358096,3637.7,3637.6,0.27492]
[1736255663355,6.56655936,3637.7,3637.6,0.27492]
[1736255664854,6.29164936,3637.7,3637.4,40.8]
[1736255665052,1.7276784,3637.7,3637.6,0.27492]
[1736255665755,1.4527684,3637.7,3637.4,40.8]
[1736255666158,1.7276784,3637.7,3637.6,0.27492]
[1736255668656,0.27492,3637.6,3637.5,0.27492]
[1736255668855,1.7276884,3637.7,3637.6,0.27492]
[1736255670361,0.27492,3637.6,3637.5,0.27492]
[1736255672061,5.11418704,3637.6,3637.5,0.27492]
[1736255673765,4.83926704,3637.6,3637.5,0.27492]
[1736255674770,5.11418704,3637.6,3637.5,0.27492]
[1736255675068,0.27492,3637.5,3637.4,41.07493]
[1736255675566,5.11418704,3637.6,3637.5,0.27492]
[1736255675766,0.27492,3637.6,3637.5,0.27492]
[1736255676366,0.27492,3637.5,3637.4,41.07493]
[1736255678372,5.11448921,3637.5,3637.4,41.07493]
[1736255678876,6.11255761,3637.5,3637.4,40.8]
[1736255679076,0.27495,3637.1,3637.0,4.30584275]
[1736255679371,5.5528184,3637.1,3637.0,3.61364275]
[1736255679573,0.27496,3637.0,3636.9,3.61364275]
[1736255679770,1.4208684,3637.0,3636.7,6.45876413]
[1736255679972,1.2730484,3636.8,3636.7,5.92180688]
[1736255680983,0.27501,3636.4,3636.3,40.8]
[1736255681284,5.5528784,3636.4,3636.3,40.8]
[1736255682385,10.39244761,3636.4,3636.3,40.8]
[1736255682681,9.39437921,3636.4,3636.3,40.8]
[1736255683582,14.79302839,3636.4,3636.3,40.8]
[1736255683983,14.79302839,3636.4,3636.3,41.07501]
[1736255684177,14.79302839,3636.4,3636.3,40.8]
[1736255684887,9.28321662,3636.4,3636.3,40.8]
[1736255685183,10.28128502,3636.4,3636.3,40.8]
[1736255686191,0.27508,3635.5,3635.4,0.27507]
[1736255686378,1.2731484,3635.5,3635.4,0.27507]
[1736255686882,1.2731484,3635.5,3635.4,41.07507]
[1736255687978,0.883,3635.6,3635.4,40.8]
[1736255688289,0.883,3635.6,3635.4,42.0731484]
[1736255688290,0.27507,3635.6,3635.4,42.0731484]
[1736255690890,0.27507,3635.5,3635.4,40.8]
[1736255691081,0.27507,3635.5,3635.4,41.7980684]
[1736255694287,3.2078,3635.7,3635.4,41.7980684]
[1736255694587,0.27507,3635.6,3635.4,42.0731484]
[1736255695291,3.2078,3635.7,3635.4,41.7980684]
[1736255695590,3.2078,3635.7,3635.6,1.2731384]
[1736255695793,0.27504,3636.0,3635.7,0.27506]
[1736255695986,4.2058684,3636.3,3635.8,1.8675684]
[1736255696182,0.27503,3636.2,3636.0,1.2730984]
[1736255696580,0.27503,3636.1,3636.0,0.9980684]
[1736255697293,0.27503,3636.1,3636.0,1.2731084]
[1736255697892,0.27503,3636.2,3636.0,1.2731084]
[1736255698193,0.27503,3636.1,3636.0,1.2731084]
[1736255699292,3.2078,3636.3,3636.0,0.9980684]
[1736255699489,3.2078,3636.3,3636.2,1.2730884]
[1736255700196,4.30260486,3636.9,3636.6,0.27499]
[1736255700386,4.30260486,3636.9,3636.6,1.2730584]
[1736255700387,4.57757486,3636.9,3636.6,1.2730584]
[1736255700692,4.57757486,3636.9,3636.6,42.0730584]
[1736255701192,3.50193365,3636.7,3636.6,41.7980684]
[1736255701391,3.50193365,3636.7,3636.6,40.8]
[1736255701693,0.27498,3636.8,3636.7,0.27498]
[1736255701890,0.27498,3636.8,3636.6,41.07499]
[1736255702291,0.27498,3636.8,3636.6,40.8]
[1736255702501,0.27495,3637.1,3636.6,40.8]
[1736255702690,0.27495,3637.1,3636.9,0.27496]
[1736255702889,0.27495,3637.1,3637.0,1.11666]
[1736255703293,3.2078,3637.2,3637.1,0.27495]
[1736255703693,3.2078,3637.2,3637.1,0.70745]
[1736255705594,3.48275,3637.2,3637.1,0.4325]
[1736255706293,3.2078,3637.2,3637.1,0.4325]
[1736255706596,3.2078,3637.2,3637.1,0.70745]
[1736255707399,3.48275,3637.2,3637.1,0.70745]
[1736255707602,3.2078,3637.2,3637.1,0.4325]
[1736255707800,3.2078,3637.2,3637.1,0.70745]
[1736255712505,0.27493,3637.5,3637.3,0.27493]
[1736255712801,2.15237517,3637.6,3637.5,0.27492]
[1736255713395,3.50195807,3637.8,3637.2,3.89516]
[1736255713396,2.15237517,3637.7,3637.2,3.89516]
[1736255713601,2.15237517,3637.7,3637.6,0.27492]
[1736255714198,2.15237517,3637.7,3637.6,41.07492]
[1736255714601,2.60477517,3637.9,3637.6,40.8]
[1736255714901,2.87967517,3637.9,3637.6,40.8]
[1736255715102,2.87967517,3637.9,3637.7,0.27491]
[1736255715699,0.4524,3637.9,3637.6,40.8]
[1736255715898,0.27491,3637.8,3637.7,0.27491]
[1736255716303,0.27491,3637.8,3637.6,41.07491]
[1736255716704,3.6602,3637.9,3637.6,41.07491]
[1736255716906,0.27491,3637.7,3637.6,0.27492]
[1736255717301,0.27491,3637.7,3637.2,3.2078]
[1736255717504,0.27491,3637.7,3637.6,0.27492]
[1736255717700,0.27491,3637.7,3637.3,40.8]
[1736255717904,2.21238005,3637.5,3637.2,3.48274]
[1736255718101,0.27494,3637.3,3637.2,3.2078]
[1736255718301,1.61473,3637.4,3637.2,3.48274]
[1736255718497,1.3398,3637.4,3637.2,3.2078]
[1736255718702,1.3398,3637.4,3637.3,0.27494]
[1736255719109,1.61473,3637.4,3637.3,0.27494]
[1736255719309,1.3398,3637.4,3637.3,0.27494]
[1736255722301,0.454,3637.4,3637.3,41.07494]
[1736255723601,2.60127517,3637.7,3637.3,40.8]
[1736255723801,0.4498,3637.4,3637.3,41.07494]
[1736255725701,0.27492,3637.6,3637.5,0.27492]
[1736255725904,0.72472,3637.6,3637.5,0.27492]
[1736255727107,0.27493,3637.5,3637.4,0.27493]
[1736255727605,0.27493,3637.4,3637.3,41.07493]
[1736255727912,0.27493,3637.4,3637.3,40.8]
[1736255728209,0.27492,3637.6,3637.5,0.27492]
[1736255729007,4.0565,3637.7,3637.3,40.8]
[1736255729204,4.33141,3637.7,3637.6,0.27492]
[1736255729710,4.0565,3637.7,3637.3,40.8]
[1736255730009,0.27493,3637.5,3637.4,0.27492]
[1736255731211,6.20887517,3637.7,3637.3,40.8]
[1736255731415,1.27293942,3637.6,3637.5,0.27492]
[1736255732307,0.99801942,3637.6,3637.5,0.27492]
[1736255732507,1.27293942,3637.6,3637.5,0.27492]
[1736255732809,0.99801942,3637.6,3637.5,0.27492]
[1736255733004,1.27293942,3637.6,3637.5,0.27492]
[1736255733407,0.27492,3637.6,3637.5,0.27492]
[1736255733711,0.27492,3637.6,3637.3,40.8]
[1736255733712,3.2078,3637.7,3637.6,0.27492]
[1736255733915,0.27491,3637.7,3637.6,0.27491]
[1736255734308,2.42727517,3637.8,3637.7,0.27491]
[1736255734911,0.2749,3637.8,3637.7,0.27491]
[1736255735215,3.42528459,3637.9,3637.8,0.2749]
[1736255736312,2.42726517,3637.9,3637.8,0.2749]
[1736255736616,3.42528459,3637.9,3637.8,0.2749]
[1736255736815,3.15039459,3637.9,3637.4,1.68534942]
[1736255737014,0.2749,3637.8,3637.7,0.2749]
[1736255737518,1.27291942,3637.9,3637.8,0.2749]
[1736255738209,0.99801942,3637.9,3637.8,0.2749]
[1736255738408,4.36904807,3638.0,3637.9,0.27489]
[1736255738612,4.09415807,3638.0,3637.9,0.71549]
[1736255738811,3.22705807,3638.0,3637.9,1.14429]
[1736255739619,3.50194807,3638.0,3637.9,1.14429]
[1736255740518,4.49996749,3638.0,3637.9,1.14429]
[1736255740922,4.22507749,3638.0,3637.9,1.14429]
[1736255741216,3.22705807,3638.0,3637.9,1.14429]
[1736255742122,3.50194807,3638.0,3637.9,1.56199]
[1736255743025,3.63951582,3638.0,3637.9,1.56199]
[1736255744022,0.41245775,3638.0,3637.9,1.56199]
[1736255745121,5.30076351,3638.1,3638.0,0.27489]
[1736255745122,5.71322126,3638.1,3638.0,0.27489]
[1736255746419,1.41047717,3638.1,3638.0,0.27489]
[1736255746619,1.41047717,3638.1,3637.9,1.2871]
[1736255746819,1.68535717,3638.1,3638.0,0.27489]
[1736255747219,1.68535717,3638.1,3637.9,0.8694]
[1736255747220,1.41047717,3638.1,3637.9,0.8694]
[1736255747426,0.27489,3638.0,3637.9,0.8694]
[1736255747626,0.2749,3637.9,3637.8,0.2749]
[1736255747826,1.27291942,3637.9,3637.8,0.2749]
[1736255748023,0.99801942,3637.9,3637.7,0.4535]
[1736255748226,0.8854,3637.8,3637.7,0.7284]
[1736255748728,1.1603,3637.8,3637.7,0.7284]
[1736255748927,0.4353,3637.8,3637.7,0.7284]
[1736255749226,4.73228639,3637.9,3637.8,0.2749]
[1736255750122,0.41245775,3637.9,3637.8,0.2749]
[1736255751624,4.20581942,3638.2,3637.7,1.45151942]
[1736255751625,5.014881,3638.1,3638.0,0.27489]
[1736255752222,5.014881,3638.1,3638.0,0.71889]
[1736255753023,0.41245775,3638.1,3638.0,0.71889]
[1736255754330,4.32025236,3638.1,3638.0,0.444]
[1736255754518,4.32025236,3638.1,3638.0,0.71889]
[1736255755323,4.73271011,3638.1,3638.0,0.71889]
[1736255756723,0.41245775,3638.1,3638.0,0.71889]
[1736255760625,3.2393774,3638.1,3638.0,0.71889]
[1736255763333,3.2393774,3638.2,3638.0,0.444]
[1736255763528,3.2393774,3638.2,3638.1,0.27488]
[1736255763730,3.2393774,3638.2,3638.1,0.73538]
[1736255765035,3.2393774,3638.2,3638.1,1.15598]
[1736255766031,3.2393774,3638.2,3638.1,2.15399942]
[1736255768034,0.41245775,3638.3,3638.2,0.27487]
[1736255768035,3.65183515,3638.3,3638.2,0.27487]
[1736255772526,3.65183515,3638.3,3638.2,41.07487]
[1736255773237,3.2393774,3638.3,3638.2,41.07487]
[1736255777245,3.5142374,3638.3,3638.2,40.8]
[1736255777739,3.5142374,3638.3,3637.8,0.27489]
[1736255777740,6.4471774,3638.3,3637.8,0.27489]
[1736255777942,0.99801942,3637.9,3637.8,0.27489]
[1736255778140,0.99801942,3637.9,3637.8,41.0749]
[1736255778338,1.69030942,3637.9,3637.8,40.8]
[1736255778731,1.69030942,3637.9,3637.8,41.0749]
[1736255779243,6.14807734,3637.9,3637.8,41.0749]
[1736255780444,1.82782498,3637.9,3637.8,41.0749]
[1736255780844,1.82782498,3637.9,3637.8,40.8]
[1736255781045,2.10271498,3637.9,3637.8,41.0749]
[1736255781947,2.10271498,3637.9,3637.8,40.8]
[1736255782347,2.10271498,3637.9,3637.3,0.4262]
[1736255782348,0.27493,3637.4,3637.3,0.4262]
[1736255782651,0.99801942,3637.4,3637.0,6.43847635]
[1736255782945,0.99801942,3637.1,3637.0,0.27496]
[1736255783440,0.99801942,3637.1,3637.0,41.07496]
[1736255784642,1.41042498,3637.1,3637.0,41.07496]